bitfinex/quotes_BTCUSD_20241229
["timestamp","ask_amount","ask_price","bid_price","bid_amount"]
[1735430642826,2.206578,95444.0,95443.0,0.00243377]
[1735430643996,2.206578,95444.0,95443.0,0.00143377]
[1735430644527,2.52510927,95444.0,95443.0,0.00143377]
[1735430644731,2.52710927,95444.0,95443.0,0.00143377]
[1735430645719,2.54755381,95444.0,95443.0,0.00143377]
[1735430646349,2.22902254,95444.0,95443.0,0.00143377]
[1735430646755,2.22502254,95444.0,95443.0,0.00143377]
[1735430646998,2.22302254,95444.0,95443.0,0.00143377]
[1735430647178,2.22602254,95444.0,95443.0,0.00143377]
[1735430647895,2.23202254,95444.0,95443.0,0.00243377]
[1735430648418,2.23202254,95444.0,95418.0,0.14447341]
[1735430648619,1.557198,95443.0,95418.0,0.04788304]
[1735430648867,2.080978,95443.0,95418.0,0.04788304]
[1735430649061,1.557198,95442.0,95418.0,0.04788304]
[1735430649264,2.080978,95442.0,95418.0,0.04788304]
[1735430649501,0.00340963,95440.0,95412.0,0.09659037]
[1735430649677,0.05211696,95438.0,95412.0,0.09659037]
[1735430649832,0.14134329,95422.0,95412.0,0.09659037]
[1735430650040,1.557198,95421.0,95418.0,0.001]
[1735430650268,2.080978,95421.0,95418.0,0.001]
[1735430650470,2.080978,95421.0,95413.0,0.07689591]
[1735430650678,0.52378,95421.0,95413.0,0.07689591]
[1735430650877,1.557198,95420.0,95413.0,0.07689591]
[1735430651096,2.22232129,95420.0,95413.0,0.07800794]
[1735430651400,1.557198,95419.0,95418.0,0.005]
[1735430651605,2.09742368,95419.0,95413.0,0.07700794]
[1735430651797,1.557198,95418.0,95413.0,0.08300794]
[1735430651956,2.080978,95418.0,95413.0,0.08300794]
[1735430652173,1.557198,95417.0,95413.0,0.08037682]
[1735430652496,0.669608,95417.0,95416.0,0.19237341]
[1735430652844,0.52378,95417.0,95416.0,0.19237341]
[1735430653626,0.652378,95417.0,95416.0,0.19237341]
[1735430653862,0.652378,95417.0,95416.0,0.19737341]
[1735430654080,0.653378,95417.0,95416.0,0.19737341]
[1735430654242,0.653378,95417.0,95416.0,0.19937341]
[1735430654639,0.44778212,95417.0,95416.0,0.19237341]
[1735430655064,0.44878212,95417.0,95416.0,0.20137341]
[1735430655295,0.44878212,95417.0,95416.0,0.22927341]
[1735430655544,0.46522627,95417.0,95416.0,0.22927341]
[1735430656097,0.46522627,95417.0,95416.0,0.13268304]
[1735430656366,0.46522627,95417.0,95416.0,0.05688304]
[1735430656568,0.5117489,95417.0,95416.0,0.05688304]
[1735430657189,0.46522627,95417.0,95416.0,0.05688304]
[1735430657952,0.46522627,95417.0,95416.0,0.009]
[1735430661472,0.46522627,95417.0,95416.0,0.10559037]
[1735430661629,0.46522627,95417.0,95416.0,0.15347341]
[1735430661804,0.44878212,95417.0,95416.0,0.15347341]
[1735430662014,0.44878212,95417.0,95416.0,0.16483224]
[1735430662563,0.32018412,95417.0,95416.0,0.15347341]
[1735430664645,1.87738212,95417.0,95416.0,0.15347341]
[1735430665264,1.89382728,95417.0,95416.0,0.15347341]
[1735430665684,1.89382728,95417.0,95416.0,0.05688304]
[1735430665961,1.89382728,95417.0,95416.0,0.009]
[1735430667122,1.89382728,95417.0,95416.0,0.0090855]
[1735430667327,1.89399828,95417.0,95416.0,0.0090855]
[1735430670618,2.03534157,95417.0,95416.0,0.0090855]
[1735430671620,2.03534157,95417.0,95416.0,0.0050855]
[1735430671819,2.03534157,95417.0,95416.0,0.0070855]
[1735430672224,1.89399828,95417.0,95416.0,0.0070855]
[1735430672428,1.89299828,95417.0,95416.0,0.0020855]
[1735430672626,1.87755312,95417.0,95416.0,0.0080855]
[1735430673246,1.87755312,95417.0,95416.0,0.0060855]
[1735430674054,0.40355512,95417.0,95416.0,0.0060855]
[1735430674257,1.96075312,95417.0,95416.0,0.0060855]
[1735430674462,1.96075312,95417.0,95416.0,0.0080855]
[1735430675804,1.97719987,95417.0,95416.0,0.0080855]
[1735430677978,1.78971074,95417.0,95416.0,0.0080855]
[1735430682848,1.77326399,95417.0,95416.0,0.0080855]
[1735430684670,0.21606599,95417.0,95416.0,0.0080855]
[1735430685113,1.77326399,95417.0,95416.0,0.0080855]
[1735430685440,1.77226399,95417.0,95416.0,8.55e-05]
[1735430685813,1.79471185,95417.0,95416.0,8.55e-05]
[1735430686031,1.79071185,95417.0,95416.0,8.55e-05]
[1735430686423,1.79471185,95417.0,95416.0,8.55e-05]
[1735430686950,1.79271185,95417.0,95416.0,8.55e-05]
[1735430687173,1.79571185,95417.0,95409.0,0.00250405]
[1735430687416,1.557198,95416.0,95409.0,0.00255495]
[1735430687612,1.68889299,95416.0,95409.0,0.00255495]
[1735430687805,1.557198,95415.0,95409.0,0.00255495]
[1735430688009,1.68889299,95415.0,95409.0,0.00255495]
[1735430688316,1.306457,95414.0,95409.0,0.00255495]
[1735430688511,1.306457,95413.0,95409.0,0.00255495]
[1735430688712,1.306457,95412.0,95409.0,0.00255495]
[1735430688920,1.306457,95411.0,95409.0,0.00255495]
[1735430689128,1.306457,95410.0,95409.0,0.00255495]
[1735430689281,1.43815199,95410.0,95409.0,0.00255495]
[1735430690851,1.51505199,95410.0,95409.0,0.00255495]
[1735430691327,1.58504581,95410.0,95409.0,0.00255495]
[1735430691889,1.6078842,95410.0,95409.0,0.00255495]
[1735430692093,1.6088842,95410.0,95409.0,0.00255495]
[1735430692597,1.58604581,95410.0,95409.0,0.00255495]
[1735430692790,1.56285199,95410.0,95409.0,0.00255495]
[1735430696210,1.57930214,95410.0,95409.0,0.00255495]
[1735430702721,1.57930214,95410.0,95409.0,0.00264045]
[1735430704708,1.56285199,95410.0,95409.0,0.00264045]
[1735430705902,0.25639499,95410.0,95409.0,0.00264045]
[1735430706110,1.56285199,95410.0,95409.0,0.00264045]
[1735430707714,1.57930275,95410.0,95409.0,0.00264045]
[1735430708035,1.56350275,95410.0,95409.0,0.00264045]
[1735430709695,1.44080275,95410.0,95409.0,0.00264045]
[1735430710881,1.44080275,95410.0,95409.0,0.07774045]
[1735430711082,1.44080275,95410.0,95409.0,0.21973082]
[1735430711280,1.43880275,95410.0,95409.0,0.28958694]
[1735430711445,0.87501575,95410.0,95409.0,0.28958694]
[1735430711647,0.61714275,95410.0,95409.0,0.26761386]
[1735430711878,0.37388199,95410.0,95409.0,0.26761386]
[1735430712080,0.37288199,95410.0,95409.0,0.26761386]
[1735430712288,0.37288199,95410.0,95409.0,0.27361386]
[1735430713423,0.37188199,95410.0,95409.0,0.26761386]
[1735430713800,0.37288199,95410.0,95409.0,0.27561386]
[1735430713994,0.37288199,95410.0,95409.0,0.26761386]
[1735430714225,0.37388199,95410.0,95409.0,0.27661386]
[1735430714429,0.39032774,95410.0,95409.0,0.27661386]
[1735430714628,0.38932774,95410.0,95409.0,0.27261386]
[1735430714834,0.39032774,95410.0,95409.0,0.28161386]
[1735430715031,0.39032774,95410.0,95409.0,0.26761386]
[1735430715032,0.38932774,95410.0,95409.0,0.26761386]
[1735430715472,0.39032774,95410.0,95409.0,0.27661386]
[1735430715896,0.39032774,95410.0,95409.0,0.28061386]
[1735430716317,0.39032774,95410.0,95409.0,0.25927525]
[1735430716318,0.13412774,95410.0,95409.0,0.25927525]
[1735430716465,0.18866137,95427.0,95409.0,0.25927525]
[1735430716466,0.14149603,95427.0,95423.0,0.09659037]
[1735430716688,0.14149603,95427.0,95426.0,0.04788304]
[1735430716858,0.15794002,95427.0,95426.0,0.04688304]
[1735430717218,0.15794002,95427.0,95426.0,0.14347341]
[1735430717459,0.27766102,95427.0,95426.0,0.15792553]
[1735430717634,0.27766102,95427.0,95426.0,0.24012553]
[1735430717789,0.13616499,95427.0,95426.0,0.24012553]
[1735430718165,0.13616499,95427.0,95426.0,0.24412553]
[1735430718715,0.13616499,95427.0,95426.0,0.22567341]
[1735430718920,0.13616499,95427.0,95426.0,0.22257341]
[1735430719567,0.13616499,95427.0,95426.0,0.11059037]
[1735430719767,0.13616499,95427.0,95426.0,0.15147341]
[1735430719990,0.13616499,95427.0,95426.0,0.14247341]
[1735430720162,0.13616499,95427.0,95426.0,0.15147341]
[1735430720375,0.13616499,95427.0,95426.0,0.09659037]
[1735430720733,0.13616499,95427.0,95426.0,0.15047341]
[1735430720929,0.13616499,95427.0,95426.0,0.15547341]
[1735430721872,0.01644399,95427.0,95426.0,0.15647341]
[1735430722279,0.01644399,95427.0,95426.0,0.11059037]
[1735430722476,0.01644399,95427.0,95426.0,0.014]
[1735430722701,1.2243864,95427.0,95426.0,0.014]
[1735430725005,1.215152,95427.0,95426.0,0.014]
[1735430725615,1.23159716,95427.0,95426.0,0.014]
[1735430726769,1.23176796,95427.0,95426.0,0.014]
[1735430729160,1.30766796,95427.0,95426.0,0.014]
[1735430729392,1.44916399,95427.0,95426.0,0.013]
[1735430729685,1.44916399,95427.0,95409.0,0.00264045]
[1735430729686,0.1249,95426.0,95409.0,0.00264045]
[1735430729895,0.0759,95425.0,95409.0,0.00264045]
[1735430730089,1.166152,95424.0,95409.0,0.00264045]
[1735430731330,1.167152,95424.0,95409.0,0.00264045]
[1735430731533,0.14114114,95419.0,95409.0,0.00264045]
[1735430731735,1.166152,95418.0,95409.0,0.00264045]
[1735430731951,1.16897538,95418.0,95409.0,0.00264045]
[1735430732119,0.01644769,95416.0,95409.0,0.00264045]
[1735430732523,0.00276722,95415.0,95409.0,0.00264045]
[1735430732732,1.16891922,95415.0,95409.0,0.00264045]
[1735430732932,1.166152,95414.0,95409.0,0.00264045]
[1735430733474,0.00276585,95413.0,95409.0,0.00264045]
[1735430733702,1.166152,95412.0,95409.0,0.00464045]
[1735430734020,1.166152,95412.0,95409.0,0.00864045]
[1735430734021,0.00276449,95411.0,95409.0,0.00864045]
[1735430734398,1.166152,95410.0,95409.0,0.00664045]
[1735430734611,1.166152,95410.0,95409.0,0.01064045]
[1735430734772,1.1689158,95410.0,95409.0,0.10723082]
[1735430734969,1.1689158,95410.0,95409.0,0.10023082]
[1735430735176,1.1689158,95410.0,95409.0,0.10523082]
[1735430735399,0.89135037,95410.0,95409.0,0.10423082]
[1735430735639,0.891351,95410.0,95409.0,0.10423082]
[1735430735841,0.91067807,95410.0,95409.0,0.10523082]
[1735430736378,0.91067807,95410.0,95409.0,0.00364045]
[1735430736576,1.03307807,95410.0,95409.0,0.00964045]
[1735430737001,1.03307807,95410.0,95409.0,0.00364045]
[1735430737201,1.03307807,95410.0,95409.0,0.00964045]
[1735430737629,0.95587807,95410.0,95409.0,0.00964045]
[1735430738754,1.03134459,95410.0,95409.0,0.00964045]
[1735430738935,0.95587807,95410.0,95409.0,0.00864045]
[1735430739152,1.03307807,95410.0,95409.0,0.00864045]
[1735430739375,1.03307807,95410.0,95409.0,0.00264045]
[1735430739770,1.03407807,95410.0,95409.0,0.00264045]
[1735430739967,1.03307807,95410.0,95409.0,0.00264045]
[1735430740172,1.03407807,95410.0,95409.0,0.00264045]
[1735430740400,1.03507807,95410.0,95409.0,0.00264045]
[1735430740535,1.22226625,95410.0,95409.0,0.00264045]
[1735430741091,1.24746007,95410.0,95409.0,0.00264045]
[1735430741499,1.05927189,95410.0,95409.0,0.00264045]
[1735430742687,1.04623374,95410.0,95409.0,0.00264045]
[1735430742915,1.04282411,95410.0,95409.0,0.00264045]
[1735430743227,1.01963029,95410.0,95409.0,0.00264045]
[1735430745030,1.01763029,95410.0,95409.0,0.00264045]
[1735430745252,0.65033929,95410.0,95409.0,0.00264045]
[1735430745446,1.54069029,95410.0,95409.0,0.00264045]
[1735430745948,1.54169029,95410.0,95409.0,0.00264045]
[1735430746104,1.55713979,95410.0,95409.0,0.00264045]
[1735430746331,1.55913979,95410.0,95409.0,0.00264045]
[1735430746540,1.55813979,95410.0,95409.0,0.00264045]
[1735430746711,1.55713979,95410.0,95409.0,0.00264045]
[1735430746910,1.55813979,95410.0,95409.0,0.00264045]
[1735430747116,1.55913979,95410.0,95409.0,0.00264045]
[1735430747517,1.56013979,95410.0,95409.0,0.00264045]
[1735430753695,1.48293979,95410.0,95409.0,0.00264045]
[1735430754128,1.43773979,95410.0,95409.0,0.00264045]
[1735430754966,1.67306042,95410.0,95409.0,0.00264045]
[1735430755293,1.67106042,95410.0,95409.0,0.00264045]
[1735430755495,1.67006042,95410.0,95409.0,0.00264045]
[1735430755693,1.67206042,95410.0,95409.0,0.00264045]
[1735430756629,1.67106042,95410.0,95409.0,0.00264045]
[1735430757487,1.43573979,95410.0,95409.0,0.00264045]
[1735430761306,1.41946109,95410.0,95409.0,0.00264045]
[1735430761937,0.52811009,95410.0,95409.0,0.00264045]
[1735430763370,1.54526109,95410.0,95409.0,0.00264045]
[1735430765872,1.54522053,95410.0,95409.0,0.00264045]
[1735430766052,1.54522053,95410.0,95400.0,0.04142059]
[1735430766263,0.891351,95409.0,95400.0,0.04147144]
[1735430766516,0.00284329,95408.0,95400.0,0.04147144]
[1735430766707,0.891351,95407.0,95400.0,0.04147144]
[1735430766883,1.415411,95407.0,95400.0,0.04147144]
[1735430767083,0.89419281,95406.0,95400.0,5.085e-05]
[1735430767310,0.89419281,95406.0,95400.0,0.04147144]
[1735430767311,0.18864338,95401.0,95400.0,0.04147144]
[1735430767717,0.19148149,95401.0,95400.0,0.04147144]
[1735430768070,0.89418911,95401.0,95400.0,0.04147144]
[1735430768635,0.89418911,95401.0,95400.0,0.04247144]
[1735430769196,0.89418911,95401.0,95400.0,0.00505085]
[1735430769608,0.89418911,95401.0,95400.0,0.04647144]
[1735430770007,0.89418911,95401.0,95400.0,0.00505085]
[1735430770879,0.89418911,95401.0,95400.0,0.00125713]
[1735430771721,1.41824911,95401.0,95400.0,0.00125713]
[1735430772352,1.54464911,95401.0,95400.0,0.00125713]
[1735430772987,1.82755742,95401.0,95400.0,0.00125713]
[1735430773193,1.82755742,95401.0,95400.0,0.00134253]
[1735430773778,1.82855742,95401.0,95400.0,0.00134253]
[1735430774325,1.54564911,95401.0,95400.0,8.54e-05]
[1735430774710,1.54664911,95401.0,95400.0,8.54e-05]
[1735430775134,1.42024911,95401.0,95400.0,8.54e-05]
[1735430775896,1.41924911,95401.0,95400.0,8.54e-05]
[1735430776300,1.41824911,95401.0,95400.0,0.0030854]
[1735430776658,1.41824911,95401.0,95400.0,0.0040854]
[1735430778263,1.70181879,95401.0,95400.0,0.0040854]
[1735430779374,1.41824911,95401.0,95400.0,0.0040854]
[1735430780186,1.49904911,95401.0,95400.0,0.0040854]
[1735430780632,1.78261879,95401.0,95400.0,0.0040854]
[1735430780833,1.78261879,95401.0,95400.0,0.0030854]
[1735430780980,1.78261879,95401.0,95400.0,8.54e-05]
[1735430781525,1.78261879,95401.0,95400.0,0.0020854]
[1735430781526,1.41824911,95401.0,95400.0,0.0020854]
[1735430781718,1.41824911,95401.0,95400.0,8.54e-05]
[1735430782779,1.41924911,95401.0,95400.0,8.54e-05]
[1735430785070,1.41941991,95401.0,95400.0,8.54e-05]
[1735430786540,1.41841991,95401.0,95400.0,0.09667577]
[1735430787138,1.41841991,95401.0,95400.0,0.09867577]
[1735430787315,1.41941991,95401.0,95400.0,0.09867577]
[1735430788542,1.41841991,95401.0,95400.0,0.09867577]
[1735430793857,1.11699291,95401.0,95400.0,0.14009636]
[1735430794058,0.64096791,95401.0,95400.0,0.22219636]
[1735430794871,0.87751757,95401.0,95400.0,0.22019636]
[1735430796273,0.64096791,95401.0,95400.0,0.22619636]
[1735430796472,0.64096791,95401.0,95400.0,0.22419636]
[1735430796686,0.64096791,95401.0,95400.0,0.23319636]
[1735430796922,0.64096791,95401.0,95400.0,0.15109636]
[1735430797933,0.83015844,95401.0,95400.0,0.14209636]
[1735430798135,0.83015844,95401.0,95400.0,0.13809636]
[1735430798360,0.83015844,95401.0,95400.0,0.14009636]
[1735430798899,0.83015844,95401.0,95400.0,0.13809636]
[1735430798900,0.64096791,95401.0,95400.0,0.13809636]
[1735430799141,0.64096791,95401.0,95400.0,0.14009636]
[1735430799346,0.64096791,95401.0,95400.0,0.14709636]
[1735430799562,0.64096791,95401.0,95400.0,0.13809636]
[1735430799974,0.64096791,95401.0,95400.0,0.14609636]
[1735430800565,0.64096791,95401.0,95400.0,0.14009636]
[1735430800994,0.64096791,95401.0,95400.0,0.05050599]
[1735430801312,0.64096791,95401.0,95400.0,0.14509636]
[1735430801539,0.52706891,95401.0,95400.0,0.14709636]
[1735430801730,1.41841991,95401.0,95400.0,0.14709636]
[1735430801875,1.65496957,95401.0,95400.0,0.14709636]
[1735430802950,1.41841991,95401.0,95400.0,0.14709636]
[1735430805036,1.49401991,95401.0,95400.0,0.14709636]
[1735430806515,1.49401991,95401.0,95400.0,0.10567577]
[1735430807166,1.41841991,95401.0,95400.0,0.14709636]
[1735430809687,0.69744391,95401.0,95400.0,0.14709636]
[1735430809886,0.52706891,95401.0,95400.0,0.1481445]
[1735430810091,0.52706891,95401.0,95400.0,0.19102895]
[1735430810295,0.52706891,95401.0,95400.0,0.18902895]
[1735430810468,0.52706891,95401.0,95400.0,0.57371527]
[1735430810677,0.52706891,95401.0,95400.0,0.57566713]
[1735430811076,0.52706891,95401.0,95400.0,0.57266713]
[1735430811320,0.52706891,95401.0,95400.0,0.53378268]
[1735430811732,0.52706891,95401.0,95400.0,0.42678268]
[1735430811941,0.52706891,95401.0,95400.0,0.42278268]
[1735430812118,0.52706891,95401.0,95400.0,0.53178268]
[1735430812331,0.5242308,95401.0,95400.0,0.53178268]
[1735430812542,0.52699671,95401.0,95400.0,0.53178268]
[1735430812738,0.52699671,95401.0,95400.0,0.52278268]
[1735430812913,0.5242308,95401.0,95400.0,0.52278268]
[1735430813114,0.5242308,95401.0,95400.0,0.53878268]
[1735430813343,0.52699466,95401.0,95400.0,0.53878268]
[1735430813551,0.52699466,95401.0,95400.0,0.53178268]
[1735430813737,0.52699466,95401.0,95400.0,0.53878268]
[1735430813941,0.52699466,95401.0,95400.0,0.59266095]
[1735430814110,0.5242308,95401.0,95400.0,0.59266095]
[1735430814318,0.52699532,95401.0,95400.0,0.59266095]
[1735430815026,0.52699532,95401.0,95400.0,0.60076095]
[1735430815331,0.5242308,95401.0,95400.0,0.60076095]
[1735430815644,0.52699244,95401.0,95400.0,0.60076095]
[1735430816226,0.52699244,95401.0,95400.0,0.44688268]
[1735430816486,0.52699244,95401.0,95400.0,0.54688268]
[1735430816702,0.5242308,95401.0,95400.0,0.53878268]
[1735430817090,0.52699088,95401.0,95400.0,0.53878268]
[1735430818979,0.52699088,95401.0,95400.0,0.43878268]
[1735430819190,0.52699088,95401.0,95400.0,0.53878268]
[1735430819412,0.5242308,95401.0,95400.0,0.53878268]
[1735430819556,0.5242308,95401.0,95400.0,0.43878268]
[1735430819754,0.52699067,95401.0,95400.0,0.53878268]
[1735430819996,0.5242308,95401.0,95400.0,0.53878268]
[1735430820225,0.52699067,95401.0,95400.0,0.53878268]
[1735430825223,0.52699067,95401.0,95400.0,0.33479636]
[1735430825633,0.6504598,95401.0,95400.0,0.33479636]
[1735430826043,0.65346624,95401.0,95400.0,0.19337577]
[1735430826241,0.65346624,95401.0,95400.0,0.33584444]
[1735430826447,0.65346624,95401.0,95400.0,0.33479636]
[1735430827662,0.65346624,95401.0,95400.0,0.25409636]
[1735430830478,0.48267178,95401.0,95400.0,0.25409636]
[1735430830925,0.48267178,95401.0,95400.0,0.297716]
[1735430831789,0.48267178,95401.0,95400.0,0.25409636]
[1735430832182,0.35644278,95401.0,95400.0,0.25409636]
[1735430835535,0.52713578,95401.0,95400.0,0.25409636]
[1735430836381,0.51635278,95401.0,95400.0,0.24709636]
[1735430836512,0.51635278,95401.0,95400.0,0.25409636]
[1735430836954,0.51635278,95401.0,95400.0,0.24709636]
[1735430837368,0.51635278,95401.0,95400.0,0.25409636]
[1735430837690,0.25067936,95401.0,95400.0,0.25409636]
[1735430838464,0.25158611,95401.0,95400.0,0.25409636]
[1735430839466,0.25158611,95401.0,95400.0,0.11267577]
[1735430839667,0.32678611,95401.0,95400.0,0.15409636]
[1735430840978,0.32678611,95401.0,95400.0,0.14509636]
[1735430841184,0.32678611,95401.0,95400.0,0.15409636]
[1735430841562,0.32678611,95401.0,95400.0,0.10567577]
[1735430841773,0.32678611,95401.0,95400.0,0.15109636]
[1735430846134,0.32678611,95401.0,95400.0,0.10967577]
[1735430846439,0.32678611,95401.0,95400.0,0.15109636]
[1735430848232,0.32678611,95401.0,95400.0,0.10967577]
[1735430849045,0.32678611,95401.0,95400.0,0.15109636]
[1735430850097,0.16687611,95401.0,95400.0,0.10967577]
[1735430850298,1.05822711,95401.0,95400.0,0.10967577]
[1735430851379,1.05822711,95401.0,95400.0,0.15109636]
[1735430851596,1.10442711,95401.0,95400.0,0.15109636]
[1735430852255,1.10442711,95401.0,95400.0,0.14709636]
[1735430852461,1.10442711,95401.0,95400.0,0.10567577]
[1735430852666,1.10442711,95401.0,95400.0,0.14909636]
[1735430852865,1.10442711,95401.0,95400.0,0.10767577]
[1735430853074,1.10442711,95401.0,95400.0,0.14709636]
[1735430853223,1.10442711,95401.0,95400.0,8.54e-05]
[1735430853435,1.29347445,95401.0,95400.0,0.0080854]
[1735430854462,1.10442711,95401.0,95400.0,8.54e-05]
[1735430854607,1.10442711,95401.0,95400.0,0.0050854]
[1735430854802,1.10442711,95401.0,95400.0,0.0070854]
[1735430855486,1.10442711,95401.0,95400.0,0.0050854]
[1735430855625,1.10442711,95401.0,95400.0,0.0060854]
[1735430855839,1.10442711,95401.0,95400.0,0.158506]
[1735430855840,1.04254211,95401.0,95400.0,0.158506]
[1735430856082,1.02874211,95401.0,95400.0,0.14409636]
[1735430856722,0.95354211,95401.0,95400.0,0.14409636]
[1735430856926,0.95354211,95401.0,95400.0,0.13909636]
[1735430857420,0.95354211,95401.0,95400.0,0.14709636]
[1735430857617,0.95354211,95401.0,95400.0,0.13909636]
[1735430857815,0.95354211,95401.0,95400.0,0.13809636]
[1735430858021,0.95354211,95401.0,95400.0,0.14709636]
[1735430858162,0.95354211,95401.0,95400.0,0.14909636]
[1735430858564,0.95354211,95401.0,95400.0,0.15609636]
[1735430858918,0.95354211,95401.0,95400.0,0.15809636]
[1735430859490,1.02922711,95401.0,95400.0,0.15609636]
[1735430859883,1.10672711,95401.0,95400.0,0.13809636]
[1735430860098,1.10672711,95401.0,95400.0,8.54e-05]
[1735430860438,1.10672711,95401.0,95400.0,0.05250599]
[1735430860751,0.21537611,95401.0,95400.0,0.0020854]
[1735430861047,1.24838427,95401.0,95400.0,0.0110854]
[1735430861191,1.24838427,95401.0,95400.0,0.0020854]
[1735430861397,1.25158427,95401.0,95400.0,0.005]
[1735430861596,1.15755386,95401.0,95400.0,0.005]
[1735430861843,1.15755386,95401.0,95400.0,0.006]
[1735430862221,1.15755386,95401.0,95400.0,0.005]
[1735430862639,1.15755386,95401.0,95391.0,0.0002]
[1735430862640,0.1238,95400.0,95391.0,0.0002]
[1735430862803,0.1238,95399.0,95391.0,0.0002]
[1735430862999,0.891351,95398.0,95391.0,0.0002]
[1735430863210,0.1238,95396.0,95391.0,0.0002]
[1735430863422,0.891351,95395.0,95391.0,0.0002]
[1735430863622,0.98344474,95395.0,95391.0,0.0002]
[1735430863824,0.1238,95392.0,95391.0,0.0002]
[1735430864018,1.10274312,95392.0,95391.0,0.04162059]
[1735430864226,0.21588929,95392.0,95391.0,0.04170599]
[1735430864427,1.10724029,95392.0,95391.0,0.04270599]
[1735430864665,1.10724029,95392.0,95391.0,0.04170599]
[1735430865148,1.10724029,95392.0,95391.0,0.04470599]
[1735430865896,1.10824029,95392.0,95391.0,0.04470599]
[1735430867447,1.10824029,95392.0,95391.0,0.14129636]
[1735430868325,1.10724029,95392.0,95391.0,0.13829636]
[1735430868557,1.10724029,95392.0,95391.0,0.13929636]
[1735430868733,1.24871608,95392.0,95391.0,0.13929636]
[1735430868884,1.24871608,95392.0,95391.0,0.13829636]
[1735430869289,1.24871608,95392.0,95391.0,0.04270599]
[1735430869512,1.10724029,95392.0,95391.0,0.04270599]
[1735430869760,1.10724029,95392.0,95391.0,0.04770599]
[1735430869940,1.10724029,95392.0,95391.0,0.04270599]
[1735430870174,1.10724029,95392.0,95391.0,0.04770599]
[1735430870806,1.10724029,95392.0,95391.0,0.04270599]
[1735430871187,1.10724029,95392.0,95391.0,0.04470599]
[1735430871515,1.24871608,95392.0,95391.0,0.04170599]
[1735430873062,1.24871608,95392.0,95391.0,0.04370599]
[1735430873628,1.10724029,95392.0,95391.0,0.04370599]
[1735430875454,1.24867294,95392.0,95391.0,0.04370599]
[1735430875871,1.24867294,95392.0,95391.0,0.14029636]
[1735430875872,1.17157294,95392.0,95391.0,0.14029636]
[1735430876012,0.42828094,95392.0,95391.0,0.15433454]
[1735430876775,0.42828094,95392.0,95391.0,0.13829636]
[1735430877176,0.42928094,95392.0,95391.0,0.14729636]
[1735430877376,0.42828094,95392.0,95391.0,0.14129636]
[1735430877809,0.28784829,95392.0,95391.0,0.15029636]
[1735430877965,0.28784829,95392.0,95391.0,0.13829636]
[1735430878176,0.28784829,95392.0,95391.0,0.14229636]
[1735430879211,0.28784829,95392.0,95391.0,0.10087577]
[1735430879419,0.28784829,95392.0,95391.0,0.0042854]
[1735430879622,0.28784829,95392.0,95391.0,0.10087577]
[1735430879806,0.28784829,95392.0,95391.0,0.10987577]
[1735430880003,0.28784829,95392.0,95391.0,0.05470599]
[1735430880445,0.28784829,95392.0,95391.0,0.0132854]
[1735430880863,0.37064829,95392.0,95391.0,0.0092854]
[1735430881068,0.37064829,95392.0,95391.0,0.0002854]
[1735430881069,0.36964829,95392.0,95391.0,0.0002854]
[1735430881265,0.36964829,95392.0,95391.0,0.04270599]
[1735430881876,0.56967045,95392.0,95391.0,0.0012854]
[1735430882463,0.56967045,95392.0,95391.0,0.0052854]
[1735430882610,0.61597045,95392.0,95391.0,0.0012854]
[1735430882820,0.64228465,95392.0,95391.0,0.0012854]
[1735430883057,0.500852,95392.0,95391.0,0.0022854]
[1735430883182,0.500852,95392.0,95391.0,0.0012854]
[1735430883385,0.501852,95392.0,95391.0,0.0022854]
[1735430883830,0.500852,95392.0,95391.0,0.0022854]
[1735430884270,0.501852,95392.0,95391.0,0.0022854]
[1735430886086,0.307093,95392.0,95391.0,0.0022854]
[1735430886296,1.198444,95392.0,95391.0,0.0022854]
[1735430887346,1.11354029,95392.0,95391.0,0.0022854]
[1735430893940,1.13985449,95392.0,95391.0,0.0022854]
[1735430895263,1.11354029,95392.0,95391.0,0.0022854]
[1735430896123,0.22118929,95392.0,95391.0,0.0022854]
[1735430896526,1.11354029,95392.0,95391.0,0.0022854]
[1735430896729,1.11354029,95392.0,95391.0,0.0012854]
[1735430896937,1.11254029,95392.0,95391.0,0.0002854]
[1735430897125,1.11254029,95392.0,95391.0,0.0022854]
[1735430897372,1.11354029,95392.0,95391.0,0.0022854]
[1735430897736,1.16346428,95392.0,95391.0,0.0022854]
[1735430898566,1.16246428,95392.0,95391.0,0.0022854]
[1735430898963,1.16546428,95392.0,95391.0,0.0002854]
[1735430899140,1.16546428,95392.0,95391.0,0.0022854]
[1735430899365,1.14526412,95392.0,95391.0,0.0002854]
[1735430899794,0.25791312,95392.0,95391.0,0.0002854]
[1735430899984,1.14926412,95392.0,95391.0,0.0002854]
[1735430900490,1.12294992,95392.0,95391.0,0.0002854]
[1735430903079,1.14926412,95392.0,95391.0,0.0002854]
[1735430904109,1.12294992,95392.0,95391.0,0.0002854]
[1735430908601,1.11954029,95392.0,95391.0,0.0002854]
[1735430909401,1.11654029,95392.0,95391.0,0.0002854]
[1735430910025,1.12054029,95392.0,95391.0,0.0002854]
[1735430910226,1.11254029,95392.0,95391.0,0.0002854]
[1735430910524,1.11654029,95392.0,95391.0,0.0002854]
[1735430911268,1.16646428,95392.0,95391.0,0.0002854]
[1735430911612,1.16546428,95392.0,95391.0,0.0002854]
[1735430911823,0.90386078,95392.0,95391.0,0.0002854]
[1735430911977,0.90286078,95392.0,95391.0,0.0002854]
[1735430912185,0.90627041,95392.0,95391.0,0.0002854]
[1735430912378,0.90927041,95392.0,95391.0,0.0002854]
[1735430912593,1.43743041,95392.0,95391.0,0.0002854]
[1735430912806,1.43443041,95392.0,95391.0,0.0002854]
[1735430913168,1.43743041,95392.0,95391.0,0.0002854]
[1735430914014,1.72062072,95392.0,95391.0,0.0002854]
[1735430914969,1.84421109,95392.0,95391.0,0.0002854]
[1735430915338,1.84762072,95392.0,95391.0,0.0002854]
[1735430916040,1.56443041,95392.0,95391.0,0.0002854]
[1735430916422,1.56102078,95392.0,95391.0,0.0002854]
[1735430916771,1.56443041,95392.0,95391.0,0.0002854]
[1735430918564,1.62300982,95392.0,95391.0,0.0002854]
[1735430919972,1.90619549,95392.0,95391.0,0.0002854]
[1735430920447,1.81789225,95392.0,95391.0,0.0002854]
[1735430921209,1.87647166,95392.0,95391.0,0.0002854]
[1735430921547,1.69089225,95392.0,95391.0,0.0002854]
[1735430921823,1.74947166,95392.0,95391.0,0.0002854]
[1735430922571,1.46628599,95392.0,95391.0,0.0002854]
[1735430923199,1.46645679,95392.0,95391.0,0.0002854]
[1735430923402,1.49618062,95392.0,95391.0,0.0002854]
[1735430924025,1.51760121,95392.0,95391.0,0.0002854]
[1735430924229,1.57618062,95392.0,95391.0,0.0002854]
[1735430925141,1.28791062,95392.0,95391.0,0.0002854]
[1735430926925,1.22933121,95392.0,95391.0,0.0002854]
[1735430927117,1.28791062,95392.0,95391.0,0.0002854]
[1735430933018,0.70524262,95392.0,95391.0,0.0002854]
[1735430933155,1.28791062,95392.0,95391.0,0.0002854]
[1735430934786,1.22933121,95392.0,95391.0,0.0002854]
[1735430938898,0.00340963,95387.0,95364.0,0.03863576]